fUST/lending_fUST_20250203
["ID","MTS","AMOUNT","RATE_DAILY","PERIOD"]
[351336755,1738518642372,-500.0,0.00016712,2]
[351336756,1738518642386,-500.0,0.00016712,2]
[351336757,1738518642402,-754.13,0.00016712,2]
[351336758,1738518642415,-500.0,0.00016712,2]
[351336759,1738518642427,-819.8,0.00016712,2]
[351336760,1738518642439,-500.0,0.00016712,2]
[351336761,1738518642451,-10881.43,0.00016712,2]
[351336762,1738518642466,-500.0,0.00016712,2]
[351336763,1738518642478,-500.0,0.00016712,2]
[351336764,1738518642491,-1413.25,0.00016712,2]
[351336765,1738518642502,-502.27,0.00016712,2]
[351336766,1738518642514,-500.0,0.00016712,2]
[351336767,1738518642526,-500.0,0.00016712,2]
[351336768,1738518642538,-500.0,0.00016712,2]
[351336769,1738518642551,-500.0,0.00016712,2]
[351336770,1738518642565,-3709.15,0.00016712,2]
[351336771,1738518642578,-500.0,0.00016712,2]
[351336772,1738518642591,-500.0,0.00016712,2]
[351336773,1738518642605,-500.0,0.00016712,2]
[351336774,1738518642621,-500.0,0.00016712,2]
[351336775,1738518642632,-500.0,0.00016712,2]
[351336776,1738518642643,-500.0,0.00016712,2]
[351336777,1738518642655,-500.0,0.00016712,2]
[351336778,1738518642668,-741.75,0.00016712,2]
[351336779,1738518642683,-500.0,0.00016712,2]
[351336780,1738518642699,-500.0,0.00016712,2]
[351336781,1738518642710,-500.0,0.00016712,2]
[351336782,1738518642721,-500.0,0.00016712,2]
[351336783,1738518642735,-1585.29,0.00016712,2]
[351336784,1738518642750,-500.0,0.00016712,2]
[351336785,1738518642762,-500.0,0.00016712,2]
[351336786,1738518642773,-4819.42,0.00016712,2]
[351336788,1738518642784,-500.0,0.00016712,2]
[351336790,1738518642797,-500.0,0.00016712,2]
[351336791,1738518642808,-500.0,0.00016712,2]
[351336792,1738518642819,-500.0,0.00016712,2]
[351336794,1738518642831,-923.43,0.00016712,2]
[351336796,1738518642843,-500.0,0.00016712,2]
[351336798,1738518642855,-500.0,0.00016712,2]
[351336800,1738518642869,-500.0,0.00016712,2]
[351336801,1738518642881,-500.0,0.00016712,2]
[351336802,1738518642892,-500.0,0.00016712,2]
[351336803,1738518642903,-500.0,0.00016712,2]
[351336804,1738518642914,-500.0,0.00016712,2]
[351336805,1738518642926,-500.0,0.00016712,2]
[351336806,1738518642936,-228.73200901,0.00016712,2]
[351336807,1738518642948,-206.09343151,0.00016712,2]
[351336808,1738518642961,-200.0,0.00016712,2]
[351336810,1738518642974,-500.0,0.00016712,2]
[351336811,1738518642986,-500.0,0.00016712,2]
[351336812,1738518642998,-952.33,0.00016712,2]
[351336813,1738518643009,-500.0,0.00016712,2]
[351336814,1738518643021,-500.0,0.00016712,2]
[351336815,1738518643032,-500.0,0.00016712,2]
[351336817,1738518643044,-500.0,0.00016712,2]
[351336819,1738518643055,-587.38658344,0.00016712,2]
[351336820,1738518643066,-500.0,0.00016712,2]
[351336821,1738518643078,-142.69073909,0.00016712,2]
[351336823,1738518643439,-357.30926091,0.00016712,2]
[351336824,1738518643449,-500.0,0.00016712,2]
[351336825,1738518643460,-500.0,0.00016712,2]
[351336826,1738518643470,-1165.69,0.00016712,2]
[351336827,1738518643480,-500.0,0.00016712,2]
[351336828,1738518643490,-635.67,0.00016712,2]
[351336829,1738518643500,-2313.03073909,0.00016712,2]
[351336830,1738518643513,-401.30926091,0.00016712,2]
[351336831,1738518643523,-261.82448825,0.00016712,2]
[351336832,1738518643535,-238.17551175,0.00016712,2]
[351336833,1738518643544,-500.0,0.00016712,2]
[351336834,1738518643554,-500.0,0.00016712,2]
[351336835,1738518643563,-500.0,0.00016712,2]
[351336836,1738518643573,-150.95374889,0.00016784,2]
[351336837,1738518643583,-1416.08,0.00016848,2]
[351336838,1738518643593,-1416.08,0.00016848,2]
[351336840,1738518643603,-500.0,0.00016849,2]
[351336841,1738518643615,-500.0,0.00016849,2]
[351336842,1738518643625,-500.0,0.00016849,2]
[351336843,1738518643635,-500.0,0.00016849,2]
[351336844,1738518643645,-500.0,0.00016849,2]
[351336845,1738518643655,-500.0,0.00016849,2]
[351336846,1738518643664,-500.0,0.00016849,2]
[351336847,1738518643674,-500.0,0.00016849,2]
[351336849,1738518643685,-500.0,0.00016849,2]
[351336850,1738518643695,-611.62,0.00016849,2]
[351336851,1738518643704,-500.0,0.00016849,2]
[351336853,1738518643714,-583.49,0.00016849,2]
[351336855,1738518643723,-912.82,0.00016849,2]
[351336856,1738518643735,-500.0,0.00016849,2]
[351336858,1738518643745,-309.07688405,0.00016849,2]
[351336860,1738518643754,-500.0,0.00016849,2]
[351336862,1738518643763,-500.0,0.00016849,2]
[351336863,1738518643774,-500.0,0.00016849,2]
[351336865,1738518643784,-754.13,0.00016849,2]
[351336867,1738518643794,-500.0,0.00016849,2]
[351336869,1738518643806,-819.8,0.00016849,2]
[351336870,1738518643816,-500.0,0.00016849,2]
[351336871,1738518643826,-1734.04215696,0.00016849,2]
[351336872,1738518643842,-2077.15719559,0.00016849,2]
[351336874,1738518643854,-3714.67535128,0.00016849,2]
[351336876,1738518643870,-3355.55529617,0.00016849,2]
[351336878,1738518643881,-43.26972862,0.00016849,2]
[351336879,1738518643893,-1369.98027138,0.00016849,2]
[351336880,1738518643905,-502.27,0.00016849,2]
[351336882,1738518643915,-500.0,0.00016849,2]
[351336883,1738518643925,-2622.92345217,0.00016849,2]
[351336885,1738518643938,-1086.22654783,0.00016849,2]
[351336887,1738518643948,-640.36,0.00016849,2]
[351336889,1738518643958,-500.0,0.00016849,2]
[351336891,1738518643968,-500.0,0.00016849,2]
[351336893,1738518643978,-741.75,0.00016849,2]
[351336895,1738518643989,-500.0,0.00016849,2]
[351336897,1738518643999,-500.0,0.00016849,2]
[351336899,1738518644009,-428.59455769,0.00016849,2]
[351336900,1738518644083,-1156.69544231,0.00016849,2]
[351336901,1738518644094,-500.0,0.00016849,2]
[351336902,1738518644105,-500.0,0.00016849,2]
[351336903,1738518644119,-4769.38046873,0.00016849,2]
[351336904,1738518644131,-50.03953127,0.00016849,2]
[351336905,1738518644142,-348.17232004,0.00016849,2]
[351336906,1738518644154,-151.82767996,0.00016849,2]
[351336907,1738518644164,-500.0,0.00016849,2]
[351336908,1738518644175,-500.0,0.00016849,2]
[351336909,1738518644184,-923.43,0.00016849,2]
[351336910,1738518644194,-540.3,0.00016849,2]
[351336911,1738518644205,-500.0,0.00016849,2]
[351336912,1738518644215,-500.0,0.00016849,2]
[351336913,1738518644225,-500.0,0.00016849,2]
[351336914,1738518644235,-500.0,0.00016849,2]
[351336915,1738518644245,-500.0,0.00016849,2]
[351336916,1738518644255,-200.0,0.00016849,2]
[351336917,1738518644265,-500.0,0.00016849,2]
[351336918,1738518644275,-500.0,0.00016849,2]
[351336919,1738518644286,-952.33,0.00016849,2]
[351336920,1738518644296,-500.0,0.00016849,2]
[351336921,1738518644307,-206.02018433,0.00016849,2]
[351336923,1738518644318,-500.0,0.00016849,2]
[351336924,1738518644327,-500.0,0.00016849,2]
[351336925,1738518644337,-778.09213571,0.00016849,2]
[351336927,1738518644349,-387.59786429,0.00016849,2]
[351336928,1738518644359,-500.0,0.00016849,2]
[351336929,1738518644374,-635.67,0.00016849,2]
[351336930,1738518644384,-2642.60213916,0.00016849,2]
[351336931,1738518644396,-71.73786084,0.00016849,2]
[351336932,1738518644406,-500.0,0.00016849,2]
[351336933,1738518644417,-500.0,0.00016849,2]
[351336934,1738518644426,-500.0,0.00016849,2]
[351336935,1738518644437,-500.0,0.00016849,2]
[351336936,1738518644447,-234.11599184,0.00016868,2]
[351336937,1738518644459,-1416.08,0.00016985,2]
[351336938,1738518644470,-1416.08,0.00016985,2]
[351336939,1738518644480,-500.0,0.00016986,2]
[351336940,1738518644490,-197.2,0.00016986,2]
[351336941,1738518644501,-500.0,0.00016986,2]
[351336942,1738518644514,-341.0,0.00016986,2]
[351336943,1738518644524,-500.0,0.00016986,2]
[351336944,1738518644537,-500.0,0.00016986,2]
[351336945,1738518644548,-583.49,0.00016986,2]
[351336946,1738518644559,-912.82,0.00016986,2]
[351336947,1738518644570,-500.0,0.00016986,2]
[351336948,1738518644580,-500.0,0.00016986,2]
[351336949,1738518644591,-500.0,0.00016986,2]
[351336950,1738518644601,-500.0,0.00016986,2]
[351336951,1738518644612,-754.13,0.00016986,2]
[351336952,1738518644632,-500.0,0.00016986,2]
[351336953,1738518644641,-819.8,0.00016986,2]
[351336954,1738518644651,-10881.43,0.00016986,2]
[351336955,1738518644662,-1413.25,0.00016986,2]
[351336956,1738518644673,-502.27,0.00016986,2]
[351336957,1738518644684,-500.0,0.00016986,2]
[351336958,1738518644694,-3709.15,0.00016986,2]
[351336959,1738518644705,-500.0,0.00016986,2]
[351336960,1738518644715,-242.99,0.00016986,2]
[351336961,1738518644726,-741.75,0.00016986,2]
[351336962,1738518644739,-500.0,0.00016986,2]
[351336963,1738518644749,-1585.29,0.00016986,2]
[351336964,1738518644763,-500.0,0.00016986,2]
[351336965,1738518644775,-225.99511947,0.00016986,2]
[351336966,1738518644786,-4819.42,0.00016986,2]
[351336967,1738518644796,-500.0,0.00016986,2]
[351336968,1738518644808,-923.43,0.00016986,2]
[351336969,1738518644819,-500.0,0.00016986,2]
[351336970,1738518644830,-500.0,0.00016986,2]
[351336971,1738518644841,-500.0,0.00016986,2]
[351336972,1738518644851,-500.0,0.00016986,2]
[351336973,1738518644860,-952.33,0.00016986,2]
[351336974,1738518644876,-500.0,0.00016986,2]
[351336975,1738518644886,-500.0,0.00016986,2]
[351336976,1738518644896,-1165.69,0.00016986,2]
[351336977,1738518644906,-500.0,0.00016986,2]
[351336978,1738518644915,-635.67,0.00016986,2]
[351336979,1738518644925,-2714.34,0.00016986,2]
[351336980,1738518644935,-500.0,0.00016986,2]
[351336981,1738518644945,-500.0,0.00016986,2]
[351336982,1738518644955,-500.0,0.00016986,2]
[351336983,1738518644965,-150.95374889,0.00017007,2]
[351336984,1738518644975,-13255.3373504,0.00017029,2]
[351336985,1738518644986,-354.4946044,0.00017041,2]
[351336986,1738518644996,-353.1713514,0.00017041,2]
[351336987,1738518645006,-153.0,0.00017068,2]
[351336988,1738518645016,-153.0,0.00017068,2]
[351336989,1738518645026,-153.0,0.00017068,2]
[351336990,1738518645039,-153.0,0.00017068,2]
[351336991,1738518645050,-153.0,0.00017068,2]
[351336992,1738518645061,-154.1761493,0.000171,2]
[351336993,1738518645071,-218.246188,0.000171,2]
[351336994,1738518645081,-153.0,0.000171,2]
[351336995,1738518645091,-1416.08,0.00017122,2]
[351336996,1738518645102,-1416.08,0.00017122,2]
[351336997,1738518645116,-500.0,0.00017123,2]
[351336998,1738518645127,-500.0,0.00017123,2]
[351336999,1738518645137,-500.0,0.00017123,2]
[351337000,1738518645148,-500.0,0.00017123,2]
[351337001,1738518645158,-583.49,0.00017123,2]
[351337002,1738518645168,-912.82,0.00017123,2]
[351337003,1738518645178,-500.0,0.00017123,2]
[351337004,1738518645188,-500.0,0.00017123,2]
[351337005,1738518645197,-500.0,0.00017123,2]
[351337006,1738518645207,-500.0,0.00017123,2]
[351337007,1738518645217,-754.13,0.00017123,2]
[351337008,1738518645227,-500.0,0.00017123,2]
[351337009,1738518645237,-819.8,0.00017123,2]
[351337010,1738518645247,-10198.62858101,0.00017123,2]
[351337011,1738518645429,-500.0,0.00016438,2]
[351337012,1738518645439,-500.0,0.00016438,2]
[351337013,1738518645449,-500.0,0.00016438,2]
[351337014,1738518645458,-500.0,0.00016438,2]
[351337015,1738518645467,-258.19485413,0.00016574,2]
[351337016,1738518645478,-500.0,0.00016575,2]
[351337017,1738518645487,-500.0,0.00016575,2]
[351337018,1738518645497,-500.0,0.00016575,2]
[351337019,1738518645506,-500.0,0.00016712,2]
[351337020,1738518645516,-336.5,0.00016849,2]
[351337021,1738518645526,-682.80141899,0.00017123,2]
[351337022,1738518645536,-1413.25,0.00017123,2]
[351337023,1738518645546,-502.27,0.00017123,2]
[351337024,1738518645556,-500.0,0.00017123,2]
[351337025,1738518645565,-3709.15,0.00017123,2]
[351337026,1738518645575,-500.0,0.00017123,2]
[351337027,1738518645584,-741.75,0.00017123,2]
[351337028,1738518645593,-500.0,0.00017123,2]
[351337029,1738518645603,-1585.29,0.00017123,2]
[351337030,1738518645616,-500.0,0.00017123,2]
[351337031,1738518645626,-4819.42,0.00017123,2]
[351337032,1738518645635,-500.0,0.00017123,2]
[351337033,1738518645645,-923.43,0.00017123,2]
[351337034,1738518645655,-500.0,0.00017123,2]
[351337035,1738518645665,-952.33,0.00017123,2]
[351337036,1738518645674,-500.0,0.00017123,2]
[351337037,1738518645684,-500.0,0.00017123,2]
[351337038,1738518645694,-1165.69,0.00017123,2]
[351337039,1738518645704,-500.0,0.00017123,2]
[351337040,1738518645715,-635.67,0.00017123,2]
[351337041,1738518645724,-2265.03133653,0.00017123,2]
[351337042,1738518645741,-449.30866347,0.00017123,2]
[351337043,1738518645751,-500.0,0.00017123,2]
[351337044,1738518645761,-500.0,0.00017123,2]
[351337045,1738518645770,-537.0,0.00017157,2]
[351337046,1738518645780,-560.09372663,0.00017157,2]
[351337047,1738518645793,-1482.90627337,0.00017157,2]
[351337048,1738518645803,-2301.0,0.00017157,2]
[351337049,1738518645814,-396.0,0.00017157,2]
[351337051,1738518645823,-153.0,0.00017157,2]
[351337052,1738518645833,-500.0,0.00017187,2]
[351337054,1738518645843,-500.0,0.00017187,2]
[351337057,1738518645852,-150.95374889,0.00017231,2]
[351337058,1738518645862,-502.21051507,0.00017248,2]
[351337061,1738518645877,-503.08834129,0.00017248,2]
[351337063,1738518645887,-500.0,0.00017248,2]
[351337065,1738518645995,-1416.08,0.00017259,2]
[351337066,1738518646006,-1416.08,0.00017259,2]
[351337067,1738518646015,-317.88,0.0001726,2]
[351337069,1738518646025,-500.0,0.0001726,2]
[351337070,1738518646035,-500.0,0.0001726,2]
[351337071,1738518646045,-583.49,0.0001726,2]
[351337072,1738518646058,-912.82,0.0001726,2]
[351337073,1738518646070,-269.56,0.0001726,2]
[351337074,1738518646080,-500.0,0.0001726,2]
[351337075,1738518646090,-754.13,0.0001726,2]
[351337076,1738518646101,-500.0,0.0001726,2]
[351337077,1738518646112,-10881.43,0.0001726,2]
[351337078,1738518646128,-819.8,0.0001726,2]
[351337080,1738518646138,-1413.25,0.0001726,2]
[351337082,1738518646150,-502.27,0.0001726,2]
[351337084,1738518646161,-500.0,0.0001726,2]
[351337085,1738518646171,-3709.15,0.0001726,2]
[351337086,1738518646181,-500.0,0.0001726,2]
[351337088,1738518646191,-741.75,0.0001726,2]
[351337089,1738518646200,-500.0,0.0001726,2]
[351337091,1738518646211,-1585.29,0.0001726,2]
[351337093,1738518646221,-500.0,0.0001726,2]
[351337095,1738518646232,-4819.42,0.0001726,2]
[351337096,1738518646242,-500.0,0.0001726,2]
[351337098,1738518646253,-923.43,0.0001726,2]
[351337100,1738518646263,-500.0,0.0001726,2]
[351337101,1738518646273,-952.33,0.0001726,2]
[351337103,1738518646283,-1165.69,0.0001726,2]
[351337105,1738518646293,-500.0,0.0001726,2]
[351337107,1738518646303,-635.67,0.0001726,2]
[351337108,1738518646314,-2714.34,0.0001726,2]
[351337109,1738518646324,-500.0,0.0001726,2]
[351337110,1738518646334,-500.0,0.0001726,2]
[351337111,1738518646344,-502.76136118,0.0001726,2]
[351337112,1738518646355,-500.0,0.00017264,2]
[351337113,1738518646369,-602.37247905,0.0001728,2]
[351337114,1738518646379,-10313.24,0.000173,2]
[351337115,1738518646389,-11276.93,0.000173,2]
[351337116,1738518646399,-1416.08,0.00017396,2]
[351337117,1738518646410,-4531.14979069,0.00017397,5]
[351337118,1738518646421,-298.241,0.00017397,2]
[351337119,1738518646431,-500.0,0.00017397,2]
[351337120,1738518646442,-500.0,0.00017397,2]
[351337121,1738518646452,-583.49,0.00017397,2]
[351337122,1738518646462,-912.82,0.00017397,2]
[351337123,1738518646472,-412.10758022,0.00017397,2]
[351337124,1738518646482,-754.13,0.00017397,2]
[351337125,1738518646493,-500.0,0.00017397,2]
[351337126,1738518646503,-10881.43,0.00017397,2]
[351337127,1738518646514,-819.8,0.00017397,2]
[351337128,1738518646524,-502.27,0.00017397,2]
[351337129,1738518646534,-1413.25,0.00017397,2]
[351337130,1738518646545,-256.90891025,0.00017397,2]
[351337131,1738518646559,-243.09108975,0.00017397,2]
[351337132,1738518646570,-3709.15,0.00017397,2]
[351337133,1738518646581,-500.0,0.00017397,2]
[351337134,1738518646591,-741.75,0.00017397,2]
[351337135,1738518646602,-447.85634396,0.00017397,2]
[351337136,1738518646618,-52.14365604,0.00017397,2]
[351337137,1738518646628,-210.10529196,0.00017397,2]
[351337150,1738518647502,-500.0,0.00016438,2]
[351337151,1738518647512,-500.0,0.00016438,2]
[351337152,1738518647522,-505.05631068,0.00016575,2]
[351337153,1738518647532,-1375.18470804,0.00017397,2]
[351337154,1738518647542,-500.0,0.00017397,2]
[351337155,1738518647551,-4819.42,0.00017397,2]
[351337156,1738518647562,-500.0,0.00017397,2]
[351337157,1738518647571,-923.43,0.00017397,2]
[351337158,1738518647580,-500.0,0.00017397,2]
[351337159,1738518647591,-952.33,0.00017397,2]
[351337160,1738518647601,-1080.10034469,0.00017397,2]
[351337161,1738518647617,-85.58965531,0.00017397,2]
[351337162,1738518647627,-500.0,0.00017397,2]
[351337163,1738518647639,-635.67,0.00017397,2]
[351337165,1738518647650,-2714.34,0.00017397,2]
[351337166,1738518647660,-500.0,0.00017397,2]
[351337167,1738518647673,-151.0,0.000174,2]
[351337168,1738518647685,-155.0,0.00017418,2]
[351337169,1738518647697,-155.0,0.00017418,2]
[351337170,1738518647708,-155.0,0.00017418,2]
[351337171,1738518647719,-155.0,0.00017418,2]
[351337172,1738518647731,-155.0,0.00017418,2]
[351337173,1738518647746,-155.0,0.00017418,2]
[351337174,1738518647756,-155.0,0.00017418,2]
[351337175,1738518647766,-155.0,0.00017418,2]
[351337176,1738518647777,-155.0,0.00017418,2]
[351337177,1738518647787,-155.0,0.00017418,2]
[351337178,1738518647797,-155.0,0.00017418,2]
[351337179,1738518647807,-155.0,0.00017418,2]
[351337180,1738518647817,-155.0,0.00017418,2]
[351337181,1738518647827,-155.0,0.00017418,2]
[351337182,1738518647838,-155.0,0.00017418,2]
[351337183,1738518647848,-155.0,0.00017418,2]
[351337184,1738518647857,-157.78,0.00017418,2]
[351337185,1738518647871,-155.0,0.00017418,2]
[351337186,1738518647881,-193.22,0.00017418,2]
[351337187,1738518647890,-155.0,0.00017441,2]
[351337188,1738518647900,-155.0,0.00017441,2]
[351337189,1738518647910,-155.0,0.00017441,2]
[351337190,1738518647920,-250.0,0.00017441,2]
[351337191,1738518647931,-155.0,0.00017441,2]
[351337192,1738518647941,-155.0,0.00017441,2]
[351337193,1738518647950,-155.0,0.00017441,2]
[351337194,1738518647960,-155.0,0.00017441,2]
[351337195,1738518647969,-155.0,0.00017441,2]
[351337196,1738518647979,-155.0,0.00017441,2]
[351337197,1738518647989,-155.0,0.00017441,2]
[351337198,1738518647999,-155.0,0.00017441,2]
[351337199,1738518648009,-155.0,0.00017441,2]
[351337200,1738518648019,-155.0,0.00017441,2]
[351337201,1738518648030,-155.0,0.00017441,2]
[351337202,1738518648043,-155.0,0.00017441,2]
[351337203,1738518648059,-155.0,0.00017441,2]
[351337204,1738518648069,-155.0,0.00017441,2]
[351337205,1738518648080,-155.0,0.00017441,2]
[351337206,1738518648091,-155.0,0.00017441,2]
[351337207,1738518648103,-155.0,0.00017441,2]
[351337208,1738518648118,-155.0,0.00017441,2]
[351337209,1738518648128,-155.0,0.00017441,2]
[351337210,1738518648138,-285.49,0.00017441,2]
[351337211,1738518648149,-150.95374889,0.00017454,2]
[351337212,1738518648159,-248.2471082,0.00017494,2]
[351337213,1738518648172,-11089.57043106,0.00017499,5]
[351337214,1738518648184,-1416.08,0.00017499,2]
[351337215,1738518648194,-1416.08,0.00017499,2]
[351337216,1738518648204,-1416.08,0.00017499,2]
[351337217,1738518648214,-1416.08,0.00017499,2]
[351337218,1738518648225,-1416.08,0.00017499,2]
[351337219,1738518648236,-1416.20963974,0.00017499,2]
[351337220,1738518648247,-550.93819652,0.000175,2]
[351337221,1738518648261,-973.8,0.000175,2]
[351337222,1738518648455,-606.30597037,0.000175,2]
[351337223,1738518648467,-748.60133342,0.000175,2]
[351337226,1738518816883,195.226876,0.00013973,2]
[351337236,1738519132312,433.37421552,0.0001506,2]
[351337243,1738519354371,1683.23287969,0.00015325,2]
[351337244,1738519367918,182.0,0.00015092,2]
[351337245,1738519368143,182.0,0.00015092,2]
[351337246,1738519368368,182.0,0.00015092,2]
[351337247,1738519368590,182.0,0.00015092,2]
[351337248,1738519368815,182.0,0.00015092,2]
[351337249,1738519369037,182.0,0.00015092,2]
[351337250,1738519369254,182.0,0.00015092,2]
[351337251,1738519369479,182.0,0.00015092,2]
[351337252,1738519369697,182.0,0.00015092,2]
[351337253,1738519369935,182.0,0.00015092,2]
[351337254,1738519370161,182.0,0.00015092,2]
[351337255,1738519370397,182.0,0.00015092,2]
[351337256,1738519370623,182.0,0.00015092,2]
[351337257,1738519370862,182.0,0.00015092,2]
[351337258,1738519377937,153.0,0.00015091,2]
[351337259,1738519378150,153.0,0.00015091,2]
[351337260,1738519378372,153.0,0.00015091,2]
[351337261,1738519378594,153.0,0.00015091,2]
[351337262,1738519378817,153.0,0.00015091,2]
[351337263,1738519379219,153.0,0.00015091,2]
[351337264,1738519379432,153.0,0.00015091,2]
[351337265,1738519379667,153.0,0.00015091,2]
[351337266,1738519379890,153.0,0.00015091,2]
[351337267,1738519380102,153.0,0.00015091,2]
[351337268,1738519380371,153.0,0.00015091,2]
[351337269,1738519380587,153.0,0.00015091,2]
[351337270,1738519380834,153.0,0.00015091,2]
[351337271,1738519380880,56.90618479,0.00015408,2]
[351337272,1738519381056,153.0,0.00015091,2]
[351337275,1738519439455,156.0,0.00015085,2]
[351337276,1738519439674,156.0,0.00015085,2]
[351337277,1738519439911,156.0,0.00015085,2]
[351337278,1738519440125,156.0,0.00015085,2]
[351337279,1738519440379,156.0,0.00015085,2]
[351337280,1738519440616,156.0,0.00015085,2]
[351337281,1738519441453,156.0,0.00015085,2]
[351337282,1738519441681,156.0,0.00015085,2]
[351337283,1738519441917,156.0,0.00015085,2]
[351337284,1738519442137,156.0,0.00015085,2]
[351337285,1738519442364,156.0,0.00015085,2]
[351337286,1738519442573,156.0,0.00015085,2]
[351337287,1738519442797,156.0,0.00015085,2]
[351337288,1738519443022,156.0,0.00015085,2]
[351337289,1738519443238,156.0,0.00015085,2]
[351337290,1738519443556,156.0,0.00015085,2]
[351337291,1738519449731,153.0,0.00015084,2]
[351337292,1738519449833,153.0,0.00015084,2]
[351337293,1738519453007,153.0,0.00015084,2]
[351337294,1738519453234,153.0,0.00015084,2]
[351337295,1738519453463,153.0,0.00015084,2]
[351337296,1738519454064,153.0,0.00015084,2]
[351337297,1738519454288,153.0,0.00015084,2]
[351337298,1738519454502,153.0,0.00015084,2]
[351337299,1738519454722,153.0,0.00015084,2]
[351337300,1738519454935,153.0,0.00015084,2]
[351337301,1738519455161,153.0,0.00015084,2]
[351337302,1738519455394,153.0,0.00015084,2]
[351337303,1738519455756,153.0,0.00015084,2]
[351337304,1738519455832,153.0,0.00015084,2]
[351337305,1738519488508,153.0,0.0001508,2]
[351337306,1738519490565,153.0,0.0001508,2]
[351337307,1738519491828,153.0,0.0001508,2]
[351337308,1738519492060,153.0,0.0001508,2]
[351337309,1738519492287,153.0,0.0001508,2]
[351337310,1738519492506,153.0,0.0001508,2]
[351337311,1738519492719,153.0,0.0001508,2]
[351337312,1738519492931,153.0,0.0001508,2]
[351337313,1738519493152,153.0,0.0001508,2]
[351337314,1738519493379,153.0,0.0001508,2]
[351337315,1738519493606,153.0,0.0001508,2]
[351337316,1738519493851,153.0,0.0001508,2]
[351337317,1738519494083,153.0,0.0001508,2]
[351337318,1738519494302,153.0,0.0001508,2]
[351337319,1738519501120,153.0,0.00015079,2]
[351337320,1738519501338,153.0,0.00015079,2]
[351337321,1738519501545,153.0,0.00015079,2]
[351337322,1738519501761,153.0,0.00015079,2]
[351337323,1738519502009,153.0,0.00015079,2]
[351337324,1738519502274,153.0,0.00015079,2]
[351337325,1738519502491,153.0,0.00015079,2]
[351337326,1738519502695,153.0,0.00015079,2]
[351337327,1738519502917,153.0,0.00015079,2]
[351337328,1738519503132,153.0,0.00015079,2]
[351337329,1738519503350,153.0,0.00015079,2]
[351337333,1738519552578,153.0,0.00015074,2]
[351337334,1738519552801,153.0,0.00015074,2]
[351337335,1738519553013,153.0,0.00015074,2]
[351337336,1738519553223,153.0,0.00015074,2]
[351337337,1738519553431,153.0,0.00015074,2]
[351337338,1738519553690,153.0,0.00015074,2]
[351337339,1738519553917,153.0,0.00015074,2]
[351337340,1738519554130,153.0,0.00015074,2]
[351337341,1738519554440,153.0,0.00015074,2]
[351337342,1738519554654,153.0,0.00015074,2]
[351337343,1738519555004,153.0,0.00015074,2]
[351337344,1738519555119,153.0,0.00015074,2]